Cogmind - Beta 17 @@@ ROGUE MODE // 2026.06.30 @ 21:23:20 Player: eph7ra Result: Destroyed by G-34 Mercenary with Small Laser Performance ------------- Evolutions (1) 500 Regions Visited (2) 400 Robots Destroyed (34) 170 Value Destroyed (711) 711 Prototype IDs (0) 0 Alien Tech Used (0) 0 Bonus (0) 0 TOTAL SCORE: 1781 Bonus ------- None Cogmind --------- Core Integrity 0/400 Matter 272/300 Energy 160/160 System Corruption 0% Temperature Cool (6) Movement Treading (160) Location -9/Materials Parts ------- > --- POWER (1) -------- Light Nuclear Core > --- PROPULSION (3) --- Light Treads Light Treads Improved Treads > --- UTILITY (3) ------ Large Storage Unit > --- WEAPON (2) ------- Hammer > --- INVENTORY (15) --- Light Nuclear Core Light Nuclear Core Improved Treads Wheel Compact Wheel Sensor Array Targeting Computer Reaction Control System Small Laser Advanced Beam Cannon Light Assault Rifle EMP Blaster Peak State ------------ > --- POWER ------------ Light Nuclear Core > --- PROPULSION ------- Light Treads Light Treads Light Treads > --- UTILITY ---------- Large Storage Unit Improved Terrain Scanner Weapon Shielding > --- WEAPON ----------- Small Laser Shotgun > --- INVENTORY -------- Light Nuclear Core Light Nuclear Core Light Nuclear Core Improved Treads Improved Treads Wheel Compact Wheel Sensor Array Targeting Computer Reaction Control System Advanced Beam Cannon Light Assault Rifle EMP Blaster Hammer [Rating: 16] Favorites ----------- Power Ion Engine Engine Ion Engine Power Core Light Nuclear Core Propulsion Light Treads Treads Light Treads Leg Aluminum Leg Utility Large Storage Unit Device Improved Terrain Scanner Storage Large Storage Unit Protection Weapon Shielding Weapon Small Laser Energy Gun Small Laser Ballistic Gun Shotgun Launcher Grenade Launcher Impact Weapon Hammer Build | -11 -10 -9 ------- Run | Yrd Mat Mat Slots Evolved 2 | . . 2 Power . | . . . Propulsion 1 | . . 1 Utility 1 | . . 1 Weapon . | . . . Parts Attached 24 | 4 5 15 Power 4 | 1 . 3 Engine 2 | 1 . 1 Core 2 | . . 2 Reactor . | . . . Propulsion 8 | 2 . 6 Treads 6 | . . 6 Leg 2 | 2 . . Wheel . | . . . Hover . | . . . Flight . | . . . Utility 4 | 1 2 1 Device 1 | . 1 . Storage 2 | 1 1 . Processor . | . . . Hackware . | . . . Protection 1 | . . 1 Artifact . | . . . Weapon 8 | . 3 5 Energy Gun 2 | . 1 1 Energy Cannon . | . . . Ballistic Gun 3 | . 1 2 Ballistic Cannon . | . . . Launcher 2 | . 1 1 Special Weapon . | . . . Impact Weapon 1 | . . 1 Slashing Weapon . | . . . Piercing Weapon . | . . . Special Melee Weapon . | . . . Unidentified Prototypes . | . . . Parts Lost 13 | . . 13 Power 3 | . . 3 Propulsion 5 | . . 5 Utility 2 | . . 2 Weapon 3 | . . 3 Highest Loss Streak 5 | . . 5 To Critical Strikes . | . . . Average Backups 11 | 5 8 13 Power 2 | . 1 2 Propulsion 3 | 2 4 3 Utility 2 | . . 3 Weapon 3 | 2 2 3 Tool/Special . | . . . Unused Backups 12 | . . 12 Power 4 | . . 4 Propulsion 3 | . . 3 Utility 3 | . . 3 Weapon 2 | . . 2 Tool/Special . | . . . Average Slot Usage (%) 83 | . 78 85 Engine 8 | . 14 5 Core 3 | . . 4 Treads 17 | . . 26 Leg 11 | . 28 2 Device 6 | . 3 7 Storage 12 | . 14 11 Protection 3 | . . 5 Energy Gun 8 | . 8 8 Ballistic Gun 6 | . 4 8 Launcher 3 | . 5 2 Impact Weapon 1 | . . 1 Peak Build Rating 16 | 4 10 16 Average Rating 10 | 3 6 12 On Entrance 4 | . 4 10 Avg Prop Armor Cover (%) . | . . . Naked Turns . | . . . Heaviest Build 33 | 10 31 33 Greatest Support 63 | 20 20 63 Greatest Overweight (x) 8 | 3 1 8 Average Overweight (x) . | . . . Largest Inventory Capacity 15 | 8 15 15 Average Capacity 14 | 7 14 15 Most Carried 15 | 8 13 15 Average Carried 11 | 5 9 13 Final Capacity 15 | 8 15 15 Final Carried 13 | 8 13 12 Class Distribution -------------------- 100% | Mutant Dominant Class ---------------- Mutant | -10/Materials Mutant | -9/Materials Resources | -11 -10 -9 ----------- Run | Yrd Mat Mat Matter Collected 668 | 224 84 360 Remotely . | . . . Salvage Created 916 | . 151 765 Parts 66 | . 19 47 Haulers Intercepted . | . . . Recyclers Shooed 1 | . . 1 Parts Field Recycled . | . . . Retrieved Matter . | . . . Parts Self-Destructed . | . . . Prevented . | . . . Parts Restored . | . . . Kills | -11 -10 -9 ------- Run | Yrd Mat Mat Combat Hostiles Destroyed 26 | . 7 19 Melee 2 | . . 2 Guns 19 | . 4 15 AOE 5 | . 3 2 Classes Destroyed 8 | . 5 3 Worker 2 | . 1 1 Builder 2 | . 1 1 Tunneler 1 | . 1 . Operator 1 | . . 1 Watcher 2 | . . 2 Swarmer 13 | . 6 7 Grunt 10 | . 1 9 Sentry 3 | . . 3 Best Kill Streak 6 | . 4 6 Combat Bots Only 5 | . 3 5 Max Kills in Single Turn 4 | . 4 2 Gunslinging 1 | . 1 1 Exploded 2 | . 2 2 Melee 1 | . . 1 Uniques/NPCs Destroyed . | . . . Combat | -11 -10 -9 -------- Run | Yrd Mat Mat Hostile Shots Fired 193 | . 22 171 Missed 51 | . 7 44 Hits 142 | . 15 127 Projectile 142 | . 15 127 Critical Strikes 5 | . . 5 Actively Blocked 1 | . . 1 Damage Taken 1737 | . 165 1572 Core 416 | . 8 408 Absorbed by Shields . | . . . Redirected to Shielding 51 | . . 51 Regen/Repaired (Parts) 16 | . 16 . Core Remaining (%) 98 | 100 96 . Volleys Fired 82 | . 11 71 Largest 2 | . 2 2 Hottest 63 | . 60 63 Shots Fired 123 | . 20 103 Gun 117 | . 17 100 Cannon . | . . . Launcher 6 | . 3 3 Special . | . . . Kinetic 59 | . 10 49 Thermal 31 | . . 31 Explosive 3 | . 3 . Electromagnetic 30 | . 7 23 Robot Hit Streak 8 | . 5 8 Robot Miss Streak 4 | . 4 4 Penetration Max . | . . . Secondary Targets 3 | . 1 2 Max Gunslinging Chain 1 | . 1 1 Shots Hit Robots 83 | . 9 74 Core Hits 46 | . 13 33 Critical Kills 1 | . . 1 Critical Parts Destroyed . | . . . Critical Strikes 1 | . . 1 Smash 1 | . . 1 Melee Attacks 15 | . . 15 Impact 15 | . . 15 Slashing . | . . . Piercing . | . . . Sneak Attacks 1 | . . 1 Combat Hostiles . | . . . Follow-up Attacks . | . . . Damage Inflicted 1664 | . 315 1349 Guns 953 | . 88 865 Cannons . | . . . Explosions 386 | . 227 159 Melee 325 | . . 325 Ramming . | . . . Kinetic 583 | . 54 529 Thermal 188 | . . 188 Explosive 227 | . 227 . Electromagnetic 341 | . 34 307 Impact 325 | . . 325 Slashing . | . . . Piercing . | . . . Highest Corruption . | . . . Average Corruption . | . . . Corruption Purged . | . . . Corruption Blocked . | . . . Overload Shots . | . . . Overflow Damage 45 | . . 45 Projectiles 8 | . . 8 Explosions . | . . . Melee 37 | . . 37 Knockbacks 3 | . . 3 Impact 2 | . . 2 Kinetic . | . . . Secondary 1 | . . 1 Self-Inflicted Damage 109 | . 38 71 Shots 6 | . 2 4 Rammed . | . . . Targets Rammed . | . . . Kicked . | . . . Crushed . | . . . Highest Temperature 40 | . 40 39 Average Temperature 18 | . 20 18 Received Heat Transfer 639 | . 12 627 Siege Activations . | . . . Martial Activations . | . . . Shielding Activations . | . . . Robots Disrupted . | . . . Combat Hostiles . | . . . Robots Corrupted 2 | . . 2 Combat Hostiles . | . . . Parts Fried 3 | . . 3 Impact Corruptions 4 | . . 4 Robots Melted . | . . . Combat Hostiles . | . . . Parts Melted . | . . . Heat Transferred 425 | . . 425 Parts Sabotaged . | . . . Parts Stolen . | . . . Parts Stripped . | . . . Power Chain Reactions 2 | . . 2 Alert | -11 -10 -9 ------- Run | Yrd Mat Mat Maximum Alert Level . | . . . Low Security (%) 100 | 100 100 100 Level 1 . | . . . Level 2 . | . . . Level 3 . | . . . Level 4 . | . . . Level 5 . | . . . High Security . | . . . Max Security . | . . . Peak Influence 187 | . 137 187 Initial 23 | . . 23 Average 52 | . 50 56 Influence Increases 767 | . 220 547 Destroy 0b10 Robot/C 520 | . 140 380 Destroy 0b10 Robot/NC 40 | . 15 25 Destroy Leader 114 | . 20 94 Successful Hack 3 | . 3 . Destroy Structure 30 | . 27 3 Lose Combat Pursuer 60 | . 15 45 Influence Decreases 605 | . 164 441 Entered New Map 33 | . . 33 Time Decay 472 | . 164 308 Lost Part 100 | . . 100 Squads Dispatched 2 | . . 2 Investigation . | . . . Extermination . | . . . Reinforcement 2 | . . 2 Assault . | . . . Garrison . | . . . Intercept . | . . . Searches Triggered . | . . . Construction Impeded 1 | . . 1 Haulers Reinforced . | . . . Active Scanning Responses . | . . . Cargo Convoy Interrupts . | . . . Stealth | -11 -10 -9 --------- Run | Yrd Mat Mat Distress Signals 2 | . . 2 Communications Jammed . | . . . Distress Signals . | . . . Times Spotted 48 | . 14 34 Peak Tracking Total 7 | . 5 7 Tactical Retreats 4 | . 1 3 Traps | -11 -10 -9 ------- Run | Yrd Mat Mat Traps Triggered 2 | . . 2 Indirectly . | . . . Trap Hack Attempts . | . . . Triggered . | . . . Disarmed . | . . . Reprogrammed . | . . . Reused . | . . . Traps Extracted . | . . . Installed . | . . . Triggered . | . . . Machines | -11 -10 -9 ---------- Run | Yrd Mat Mat Machines Disabled . | . . . Max in Single Turn . | . . . Machines Repaired . | . . . Machines Dismantled . | . . . Machines Sabotaged . | . . . Overloaded Fab Kills . | . . . Hacking | -11 -10 -9 --------- Run | Yrd Mat Mat Machines Accessed 4 | . 3 1 Terminals 3 | . 2 1 Fabricators . | . . . Repair Stations 1 | . 1 . Recycling Units . | . . . Scanalyzers . | . . . Garrison Access . | . . . Total Hacks 10 | . 8 2 Successful 2 | . 2 . Failed 8 | . 6 2 Catastrophic . | . . . Database Lockouts . | . . . Manual 8 | . 6 2 Terminals 8 | . 6 2 Fabricators . | . . . Repair Stations 2 | . 2 . Recycling Units . | . . . Scanalyzers . | . . . Garrison Access . | . . . Terminal Hacks . | . . . Fabricator Hacks . | . . . Repair Station Hacks 2 | . 2 . Scan Component 1 | . 1 . Repair 1 | . 1 . Recycling Unit Hacks . | . . . Scanalyzer . | . . . Garrison Access Hacks . | . . . Unauthorized Hacks . | . . . Terminals . | . . . Fabricators . | . . . Repair Stations . | . . . Recycling Units . | . . . Scanalyzers . | . . . Garrison Access . | . . . Data Cores Recovered . | . . . Used . | . . . Hacking Detections 4 | . 3 1 Full Trace Events . | . . . Feedback Events . | . . . Feedback Blocked . | . . . Robot Schematics Acquired . | . . . Robots Built . | . . . Authchips . | . . . Time . | . . . Total Robot Build Rating . | . . . Part Schematics Acquired . | . . . Parts Built . | . . . Authchips . | . . . Time . | . . . Total Part Build Rating . | . . . Part Studies Acquired . | . . . Parts Repaired 1 | . 1 . Time 26 | . 26 . Parts Recycled . | . . . Recycled Matter . | . . . Retrieved Matter . | . . . Retrieved Components . | . . . Parts Scanalyzed . | . . . Part Schematics Acquired . | . . . Parts Damaged . | . . . Bothacking | -11 -10 -9 ------------ Run | Yrd Mat Mat Used RIF Installer . | . . . Robots Hacked . | . . . Non-combat . | . . . Combat . | . . . Robot Hacks Applied . | . . . Relay Couplers Released . | . . . Fabnet Peak Effective % . | . . . Robots Rewired . | . . . Allies Hacked . | . . . Hacks Repelled . | . . . Allies | -11 -10 -9 -------- Run | Yrd Mat Mat Total Allies . | . . . Largest Group . | . . . Highest-Rated Group . | . . . Highest-Rated Ally . | . . . Total Orders . | . . . Ally Attacks . | . . . Total Damage . | . . . Kills . | . . . Allies Corrupted . | . . . Allies Melted . | . . . Intel | -11 -10 -9 ------- Run | Yrd Mat Mat Active Infowar (turns) 889 | . 140 749 Terrain 889 | . 140 749 Robot Analysis Total . | . . . Derelict Logs Recovered . | . . . Drone Launches . | . . . Drone Recoveries . | . . . Exploration | -11 -10 -9 ------------- Run | Yrd Mat Mat Turns Passed 1685 | 76 559 1050 Spaces Moved 761 | 48 248 465 Core 15 | 13 . 2 Treads 419 | . . 419 Legs 327 | 35 248 44 Wheels . | . . . Hover . | . . . Flight . | . . . Fastest Speed 50 | 50 120 160 Average Speed 170 | 130 187 165 Slowest Speed 450 | 200 190 450 Overloaded Moves . | . . . Propulsion Burnouts . | . . . Robots Hopped . | . . . Potential Cave-ins . | . . . Cave-ins Triggered . | . . . Exploration Rate (%) 33 | 4 54 41 Regions Visited 2 Branch Regions . Pre-discovered Areas . | . . . Known Exits Taken . | . . . Unknown Exits Taken 2 | 1 1 . Scrap Searched . | . . . Spaces Dug . | . . . Terrain Destroyed 29 | . 27 2 Melee . | . . . Projectile . | . . . AOE 29 | . 27 2 Terrain Rammed . | . . . Walls Destroyed . | . . . Machines Disabled . | . . . Actions | -11 -10 -9 --------- Run | Yrd Mat Mat Total 994 | 59 322 613 Wait 74 | . 47 27 Move 759 | 47 247 465 Hop . | . . . Pick Up 28 | 8 8 12 Fast Attach 13 | 4 2 7 Attach 13 | . 3 10 Detach . | . . . Swap 5 | . 3 2 Drop 5 | . 1 4 Fire 82 | . 11 71 Melee 15 | . . 15 Ram . | . . . Kick . | . . . Crush . | . . . Escape Stasis . | . . . Rewire . | . . . Trap . | . . . Miscellaneous . | . . . Route ------- -11/Scrapyard -10/Materials (discovered 2 exits: *Mat / [*Min]) -9/Materials (discovered 2 exits: [*Mat] / [*Min]) History --------- Turn | Location | Event 13 | -11/Scrapyard | Discovered new exit (range 16) 77 | -11/Scrapyard | Entered Materials 188 | -10/Materials | Discovered new exit (range 6) 310 | -10/Materials | Build established: Mutant 483 | -10/Materials | Repaired EM Pulse Gun 548 | -10/Materials | Discovered new exit (range 15) 636 | -10/Materials | Entered another Materials area 636 | -9/Materials | Evolved 2 slots: Propulsion x1, Utility x1 792 | -9/Materials | Lost 5 parts (1p2n2w) 1264 | -9/Materials | Discovered new exit (range 12) 1304 | -9/Materials | Core integrity fell below 50% 1530 | -9/Materials | Core integrity fell below 20% 1593 | -9/Materials | Lost 4 parts (2n1u1w) 1674 | -9/Materials | Discovered new exit (range 15) 1686 | -9/Materials | Destroyed by G-34 Mercenary with Small Laser Last Messages --------------- K-01 Serf collects debris. Shotgun destroyed. G-34 Mercenary suffers critical hit (Smash). G-34 Mercenary destroyed. K-01 Serf collects debris. W-16 Scout sends out distress signal. Sneak attack on K-01 Serf. Destroyed Wheel. Destroyed Med. Matter Pod. K-01 Serf system corrupted by crushing effect. K-01 Serf knocked back. K-01 Serf system terminally corrupted. Wheel fried. Acquired 20 matter. Critical hit (Burn: +37). EXIT=FOUND K-01 Serf destroyed. R-06 Scavenger collects Wheel. R-06 Scavenger collects Lgt. Ion Engine. Map ----- +----------------------------------------------------+ | ???????????????????????????????????????? | | ???????????????????????????????????????? | | ???????????????????????????????????????? | | ???????????????????????????????????????? | | ???????????????????????????????????????? | | ???????????????????????????????????????? | | ???????????????????????????????????????? | | ???????????????????????????????????????? | | ???????????????????????????????????????? | | ???????????????????????????????????????? | | ##?????????????????????????????????????? | | ?????????????????????????????????????? | | ?????????????????????????????????????? | | ?????????????????????????????????????? | | ?????????????????????????????????????? | | ?????????????????????????????????????? | | ?????????????????????????????????????? | | #????????????????????????????????????? | | +????????????????????????????????????? | | # #????????????????????????????????????? | | # #????????????????????????????????????? | | # #????????????????????????????????????? | | # #????????????????????????????????????? | | # #############################+####???? | | g #???? | | r @ < #???? | | g % u #???? | | ###############+##### #######+####???? | | #?????????? ?????# #??????????????? | | #???????? ??????# #??????????????? | | #??????? ????????# #??????????????? | | #????? ?????????# #??????????????? | | #???? ??????? ??# ??????????????? | | ###???# ??????? ????# ##?????????????? | | ??????#?????????????##+##??????????????? | | ??????????#?????? ?????????????????????? | | ???????????#?#???????? ????????????????? | | ????????????????? ? ? ?? ??????????????? | | ????????????#??????????????????????????? | | ??????????????#?? ????????????##???????? | | ???????????????#??????? ??? ???????????? | | ???????#????????##########??#???????#??? | | ???###????????#??# #?????????????? | | ????## #####?#???# #?#???????????? | | ?????# ???#?# ###??#####????? | | ??#??? """ ?#??# """ # ? #????? | | ??#?## "T ?#?# """"" # #????? | | ??#??# """ ???# """"" # #????? | | ????## #### """"" # """ #????? | | ?#??## """ + + """ # """ #????? | +----------------------------------------------------+ Best States ------------- Heat Dissipation 28 Energy Generation 14 Energy Capacity 250 Matter Stores 300 Matter Capacity 300 Sight Range 16 Terrain Scan Range 16 Terrain Scan Density 10 Weapon Shielding 33 Evasion (%) 55 Recoil Reduction 3 Item Schematics ----------------- None Robot Schematics ------------------ None Fabricated ------------ Nothing Repaired ---------- EM Pulse Gun | 64% | -10/Materials Studied --------- None Alien Tech Used ----------------- None Achievements -------------- None Challenges ------------ None Game ------ Seed AntigravDeepMaul Manual? 0 Play Time 00:14:20 Cumulative 22.1 hours Start 2026.06.30 @ 06:07:28 End 2026.06.30 @ 21:23:20 Sessions 2 Manual Loads 0 Difficulty Rogue Special Mode None Game No. 28 Rogue 23 Adventurer 1 Explorer 4 Win Type - Total 0 Types 0/0/0/0/0/0/0/0/0/0 Lore% 9 Gallery% 19 Achievement% 17 Wizard Run 0 Options --------- Layout 1 ASCII 0 Keyboard 0 Movement Arrows Keybinds 0 Fullscreen 1 Font 24/Smallcaps Map View 50x35 Zoom Use 0% Tactical HUD 0 Map Filters NONE Filters NONE Steam 1 RUN: 245410c3-0619-4ea6-814d-677791cab149